Posting Date,Expenditure Area,Supplier Name,Amount,Expense Type,Reason for Expense
21-Jul-20,Corporate Management Team,Argos Ltd,864.92,Specific Campaigns / Projects expenditure,Bedding and household items for East/West villa
22-Jul-20,Corporate Management Team,Argos Ltd,211.62,Specific Campaigns / Projects expenditure,Electrical items for residents in East/West Villa funding
03-Jul-20,Corporate Management Team,Asda George Com Leeds,990.25,Specific Campaigns / Projects expenditure,Household items for east/west villa from direct line funding
06-Jul-20,Corporate Management Team,Dunelm,348.40,Specific Campaigns / Projects expenditure,Household items for East/west Villa from direct line funds
21-Jul-20,Culture & Environment Services,Amazon.Co.Uk,193.69,Computer Equipment - Purchase,1x tablet
21-Jul-20,Culture & Environment Services,Amz*universal Office P,-85.52,Equipment / Furniture / Materials,refund for non delivery of Lockable trolley for office
24-Jul-20,Culture & Environment Services,Amznmktplace,31.63,Cleaning Supplies,Hand sanitizer for ransomes
31-Jul-20,Culture & Environment Services,Amznmktplace,19.96,Direct Transport Costs,5x car charger adapters
23-Jun-20,Culture & Environment Services,Amznmktplace,85.52,Equipment / Furniture / Materials,Lockable trolley for office
29-Jun-20,Culture & Environment Services,Amznmktplace,20.57,Equipment / Furniture / Materials,Telescopic hook for skip lorry
29-Jun-20,Culture & Environment Services,Amznmktplace,23.25,Materials and Supplies - Miscellaneous,Sand bag covers
07-Jul-20,Culture & Environment Services,Amznmktplace,89.12,Materials and Supplies - Miscellaneous,COVID related purchase
16-Jul-20,Culture & Environment Services,Amznmktplace,36.65,Materials and Supplies - Miscellaneous,Hand Gel for Responders
29-Jul-20,Culture & Environment Services,Amznmktplace,83.12,Materials and Supplies - Miscellaneous,COVID related purchase
08-May-20,Culture & Environment Services,Amznmktplace Amazon.Co.Uk,26.66,Materials and Supplies - Miscellaneous,5 x Kamhairaiog S Hook 10-Pack
14-Jul-20,Culture & Environment Services,Argos Ltd,41.66,Equipment / Furniture / Materials,microwave
06-Jul-20,Culture & Environment Services,Asl Security Locks,40.00,Equipment / Furniture / Materials,Key Cutting
02-Jul-20,Culture & Environment Services,B & Q 1315,34.28,Equipment / Furniture / Materials,Timber - HOLYWELLS SHIP REPAIR
19-Jun-20,Culture & Environment Services,B & Q 1315,9.95,Materials and Supplies - Miscellaneous,USB phone charger for work van.
06-Jul-20,Culture & Environment Services,B & Q 1315,12.08,Materials and Supplies - Miscellaneous,Snail Slug Pellets and 1L Sprayers
07-Jul-20,Culture & Environment Services,B & Q 1315,22.93,Materials and Supplies - Miscellaneous,Sprayers and kits for cleaning Play Areas during COVID 19
08-Jul-20,Culture & Environment Services,B & Q 1315,35.83,Materials and Supplies - Miscellaneous,Holywells Park General Repairs
10-Jul-20,Culture & Environment Services,B & Q 1315,9.79,Materials and Supplies - Miscellaneous,Spray Bottles for use on Play Equipment
01-Jul-20,Culture & Environment Services,B & Q 1315,242.93,Miscellaneous Stock  - Purchases,Plywood for repair @HOLYWELLS PLAY AREA
20-Jul-20,Culture & Environment Services,B & Q 1315,101.25,Miscellaneous Stock  - Purchases,Mastercrete - CHRISTCHURCH PARK PLAY INSTALLATION
23-Jul-20,Culture & Environment Services,B & Q 1315,11.15,Miscellaneous Stock  - Purchases,3 x Mastercrete - CHRISTCHURCH PARK
23-Jul-20,Culture & Environment Services,B & Q 1315,111.50,Miscellaneous Stock  - Purchases,30x Bags of Mastercrete - CHRISTCHURCH PARK
24-Jul-20,Culture & Environment Services,B & Q 1315,37.17,Miscellaneous Stock  - Purchases,10 x bags of cement - CHRISTCHURCH PARK
30-Jun-20,Culture & Environment Services,Bag Agg Ltd,17.50,Miscellaneous Stock  - Purchases,Ballast - BASE FOR BENCH @HOLYWELLS
03-Jun-20,Culture & Environment Services,Booker Limited Ipswich,23.90,Equipment / Furniture / Materials,Water for staff
25-Jun-20,Culture & Environment Services,Booker Limited Ipswich,23.90,Equipment / Furniture / Materials,Water for staff
06-May-20,Culture & Environment Services,Booker Limited Ipswich,44.97,Materials and Supplies - Miscellaneous,tuperware etc for food parcels
03-Jul-20,Culture & Environment Services,Booker Limited Ipswich,6.24,Materials and Supplies - Miscellaneous,Sundries for Waste Services
13-Jul-20,Culture & Environment Services,Breakaway Tackle Ltd,44.08,Miscellaneous Stock  - Purchases,Net for fishing out the rubbish in the round pond
31-Jul-20,Culture & Environment Services,Castle Industrial,72.50,Cleaning Supplies,PPE masks for CSC
06-Jul-20,Culture & Environment Services,Castle Industrial,93.00,Premises Costs - Miscellaneous,First Aid CPR masks parks
14-Jul-20,Culture & Environment Services,Cpw Locksmiths And Securi,132.50,Miscellaneous Stock  - Purchases,Replacement keys for Westerfield Road toilets
30-Jul-20,Culture & Environment Services,Deck The Halls,362.43,Materials and Supplies - Miscellaneous,Various Plants - CORNHILL PLANTERS
22-Jul-20,Culture & Environment Services,Dobbies,85.77,Materials and Supplies - Miscellaneous,Various Plants for CORNHILL PLANTERS
22-Jul-20,Culture & Environment Services,Dobbies,127.42,Materials and Supplies - Miscellaneous,Various Plants for CORNHILL PLANTERS
10-Jul-20,Culture & Environment Services,Dvla Vehicle Tax,267.50,Direct Transport Costs,Vehicle Tax
10-Jul-20,Culture & Environment Services,Dvla Vehicle Tax,267.50,Direct Transport Costs,Vehicle tax 
10-Jul-20,Culture & Environment Services,Dvla Vehicle Tax,142.50,Parks Vehicle Costs,Vehicle tax 
10-Jul-20,Culture & Environment Services,Dvla Vehicle Tax,267.50,Parks Vehicle Costs,Vehicle tax 
21-Jul-20,Culture & Environment Services,East Anglian Beari,28.00,Materials and Supplies - Miscellaneous,2 drive belts for tractor mower
03-Jun-20,Culture & Environment Services,Foxs Chandleries Limi,54.17,Equipment / Furniture / Materials,Helmet for weedspraying
15-Jul-20,Culture & Environment Services,Gripfixings Ipswich,39.57,Materials and Supplies - Miscellaneous,Material for a bench Installation - CHANTRY PARK
01-Jul-20,Culture & Environment Services,Gripfixings Ipswich,43.70,Miscellaneous Stock  - Purchases,Brackets & Drill bits - LANDSCAPE TEAM
20-May-20,Culture & Environment Services,Halfords 0883,6.67,Materials and Supplies - Miscellaneous,bungee cords
23-Jul-20,Culture & Environment Services,Horticultural Sppls Ltd,126.67,Miscellaneous Stock  - Purchases,Grass Seeds - CCP Play Area Installation
01-Jul-20,Culture & Environment Services,Ipswich Borough Co,45.83,Non Contracted_Professional Services,Parking bay suspension to SCC
29-Jun-20,Culture & Environment Services,Jewson Ltd,53.52,Miscellaneous Stock  - Purchases,Quickset cement - THURSTON & CCP
22-Jul-20,Culture & Environment Services,Kiln Farm Nursery,47.47,Materials and Supplies - Miscellaneous,Plants for CORNHILL PLANTERS
30-Jun-20,Culture & Environment Services,Kings,13.75,Materials and Supplies - Miscellaneous,Cyclinder Keys - BOURNE PARK
28-Jul-20,Culture & Environment Services,Kings,98.33,Materials and Supplies - Miscellaneous,22 x Keys
20-Jul-20,Culture & Environment Services,Legacy Habitat Managem,498.64,Materials and Supplies - Miscellaneous,Stakes Fencing Washers for Sproughton
06-Jul-20,Culture & Environment Services,Machine Mart Ltd,8.99,Equipment / Furniture / Materials,Blowgun for Cleansing
21-Jul-20,Culture & Environment Services,Machine Mart Ltd,6.99,Equipment / Furniture / Materials,metal drill bit
24-Jul-20,Culture & Environment Services,Machine Mart Ltd,18.17,Equipment / Furniture / Materials,Rivets for Play Area Equipment
22-Jul-20,Culture & Environment Services,Notcutts Garden Ce,230.83,Materials and Supplies - Miscellaneous,Various Plants for CORNHILL PLANTERS
24-Jun-20,Culture & Environment Services,Orwell Motor Cycles Lt,106.65,Equipment / Furniture / Materials,Helmet for weed spraying
10-Jul-20,Culture & Environment Services,Paypal,12.07,Equipment / Furniture / Materials,Cable ties for lifting equipment LOLER inspections
13-Jul-20,Culture & Environment Services,Paypal,86.00,Materials and Supplies - Miscellaneous,Chains
22-Jun-20,Culture & Environment Services,Premier Farnell,49.92,Materials and Supplies - Miscellaneous,Untragrime Large Ind. Cleaning Wipes
26-Jun-20,Culture & Environment Services,S. Critchley & Son,149.40,Goods for Resale - Bereavement,Masonry supplies
09-Jun-20,Culture & Environment Services,Sainsburys S/mkt,2.50,Materials and Supplies - Miscellaneous,Sundries for Waste Services
26-Jun-20,Culture & Environment Services,Sainsburys S/mkt,2.50,Materials and Supplies - Miscellaneous,Sundries for Waste Services
07-Jul-20,Culture & Environment Services,Sainsburys S/mkt,2.50,Materials and Supplies - Miscellaneous,Sundries for Waste Services
29-Jul-20,Culture & Environment Services,Sainsburys S/mkt,8.83,Materials and Supplies - Miscellaneous,Sundries for Waste Services
16-Jun-20,Culture & Environment Services,Sainsburys S/mkts,13.00,Materials and Supplies - Miscellaneous,Sundries for Waste Services
20-Jul-20,Culture & Environment Services,Sainsburys S/mkts,10.92,Materials and Supplies - Miscellaneous,Sundries for Waste Services
23-Jul-20,Culture & Environment Services,Sainsburys S/mkts,1.83,Materials and Supplies - Miscellaneous,Sundries for Waste Services
01-Jul-20,Culture & Environment Services,Screwfix Direct,23.32,Equipment / Furniture / Materials,Rofing screws - HOLYWELLS WATER AREA REPAIR
02-Jul-20,Culture & Environment Services,Screwfix Direct,14.16,Equipment / Furniture / Materials,Flay wood bit - HOLYWELLS PLAY AREA REPAIRS
24-Jul-20,Culture & Environment Services,Screwfix Direct,14.98,Materials and Supplies - Miscellaneous,2 x Wet Floor A Frame Signs
22-Jul-20,Culture & Environment Services,Screwfix Direct,6.67,Miscellaneous Stock  - Purchases,Spray Paint - CHRISTCHURCU PARK PLAY AREA INSTALL
09-Jul-20,Culture & Environment Services,Security Industry,190.00,Licences & Other Fees,SIA licence renewal fee.
31-Jul-20,Culture & Environment Services,Sovereign Turf Ltd,154.00,Miscellaneous Stock  - Purchases,Turf - CCP Play Area Installation
30-Jul-20,Culture & Environment Services,Sp * Sam Turner & Sons,509.00,Miscellaneous Stock  - Purchases,STIHL Cut off Saw - LANDSCAPE TEAM
24-Jun-20,Culture & Environment Services,Suffolk County Council,58.33,Equipment / Furniture / Materials,water for staff
14-Jul-20,Culture & Environment Services,The Range,23.31,Materials and Supplies - Miscellaneous,Sprayers for cleaning play equipment
17-Jul-20,Culture & Environment Services,The Windscreen Co,144.00,Direct Transport Costs,1/4 light repair 
28-Jul-20,Culture & Environment Services,The Windscreen Co,42.00,Direct Transport Costs,WS trim replacement 
21-Jul-20,Culture & Environment Services,Thurlow Nunn Standen L,83.33,Clothing / Uniform & Laundry,Rangers PPE and Equipment
01-Jul-20,Culture & Environment Services,Timpson Ltd,20.42,Materials and Supplies - Miscellaneous,Keys cut for PARK PATROL
15-Jul-20,Culture & Environment Services,Timpson Ltd,22.92,Materials and Supplies - Miscellaneous,Keys Cut - BOURNE PARK
28-Jul-20,Culture & Environment Services,Tp Ipswich,32.77,Miscellaneous Stock  - Purchases,Sand for paving blocks -
21-Jul-20,Culture & Environment Services,Waterirrigation,419.76,Materials and Supplies - Miscellaneous,Water Irrigation for Planters - CHRISTCHURCH PARK
16-Jul-20,Culture & Environment Services,Wickes Ipswich,15.42,Miscellaneous Stock  - Purchases,Cement for CCP play area
16-Jul-20,Culture & Environment Services,Wilko Retail Limited,1.96,Equipment / Furniture / Materials,Jug & Funnel for COVID cleaning product dispensing
22-Jun-20,Culture & Environment Services,Wm Morrisons Store,0.91,Materials and Supplies - Miscellaneous,Sundries for Waste Services
01-Jul-20,Culture & Environment Services,Wm Morrisons Store,28.87,Materials and Supplies - Miscellaneous,Cleaning Products for BOURNE PARK MESS ROOM
07-Jul-20,Culture & Environment Services,Www.Banneruk.Com,6.08,Stationery,stationery order
22-Jul-20,Culture & Environment Services,Www.Bunzlcleaningsuppl,51.27,Cleaning Supplies,Blue rolls for Ransomes
01-Jul-20,Culture & Environment Services,Www.Clarkforest.Com,99.00,Materials and Supplies - Miscellaneous,chain saw oil
30-Jul-20,Culture & Environment Services,Www.Extranet.Aplant.Com,545.00,Equipment Hire,Mewp HIre
10-Jul-20,Culture & Environment Services,Www.Licencecheck.Co.Uk,840.00,Direct Transport Costs,200 credits for licence checks
03-Jul-20,Culture & Environment Services,Www.Safetyfirstaid.Co.,38.00,Cleaning Supplies,Cleaning kit and masks for First Aid kits Parks + Parking
27-Jul-20,Culture & Environment Services,Www.Speedyservices.Com,-5.32,Materials and Supplies - Miscellaneous,refund
14-Jul-20,Culture & Environment Services,Www.Toolstation.Com,11.35,Equipment / Furniture / Materials,Drill bits & tools - PLAY AREA INSTALL
20-Jul-20,Development,Babergh District C,100.00,Non Contracted_Professional Services,Partnership Application
13-Jul-20,Development,Bsi Standards,"1,103.00",Subscriptions - Service Related,BSI Membership 20/21
27-Jul-20,Development,Castle Industrial,62.50,Equipment / Furniture / Materials,25 x foam face visors (PPE) Covid preparation 
21-Jul-20,Development,Central Source Ltd,645.80,Equipment / Furniture / Materials,"Retractable barriers for CCM/Museum , Covid reopening works"
22-Jul-20,Development,Central Source Ltd,645.80,Equipment / Furniture / Materials,"2nd order, retractable barriers for CCM/Museum, Covid works"
28-Jul-20,Development,Central Source Ltd,341.90,Equipment / Furniture / Materials,"Tensa barriers x10 for various sites, Covid19 works"
17-Jul-20,Development,Horizon Environment Sr,49.75,Premises Costs - Miscellaneous,pest control
27-Jul-20,Development,Icsa Services Ltd,345.00,Employee Expenses,subsription
29-Jul-20,Development,Seton,33.50,Equipment / Furniture / Materials,"5 x Barrier clips, Covid19 works"
14-Jul-20,Development,"Www,eastsuffolk.Gov.Uk",96.00,Non Contracted_Professional Services,Partnership Inspections 
20-Jul-20,Development,Www.Haymarket.Com,299.00,Publications - Purchase,Planning Resource & Planning Magazine 20/21
10-Jul-20,Development,Www.Latitudemaps.Co.Uk,27.50,Publications - Purchase,Latitude Maps (Planning and Development)
01-Jul-20,Development,Www.Mailcoms.Co.Uk,265.95,Postage Costs,annual licence and SLA
02-Jul-20,Development,Www.Planningportal.Co.,259.00,Capital Expenditure,Planning fees via IBC portal
28-Jul-20,Development,Www.Planningportal.Co.,259.00,Capital Expenditure,Planning app fees for 1 Cornhill
17-Jul-20,Development,Www.Washroomhub.Co.Uk,133.32,Equipment / Furniture / Materials,2 x anti vandal hand sanitisers for Parks (Covid 19)
14-Jul-20,Finance & Revenues,Amazon.Co.Uk,74.48,Computer Equipment - Purchase,2 x Surface USB to NIC
29-Jul-20,Finance & Revenues,Amazon.Co.Uk,76.10,Equipment / Furniture / Materials,10 x laptop sleeves
28-Jul-20,Finance & Revenues,Amznmktplace,99.92,Equipment / Furniture / Materials,USB hubs x 8
30-Jul-20,Finance & Revenues,Amznmktplace,63.96,Equipment / Furniture / Materials,4 x PC Keyboards
03-Jul-20,Finance & Revenues,Amznmktplace,58.25,Telecommunication Costs - Mobiles,Protective Cases for Smartphones
24-Jul-20,Finance & Revenues,Amznmktplace Amazon.Co.Uk,-92.85,Telecommunication Costs - Mobiles,Refund for protective smartphone cases
24-Jul-20,Finance & Revenues,Amznmktplace Amazon.Co.Uk,-36.11,Telecommunication Costs - Mobiles,Refund for protective smartphone cases
25-Jun-20,Finance & Revenues,Cbt Nuggets Llc,48.94,Training Expenses,ICT Training
27-Jul-20,Finance & Revenues,Cbt Nuggets Llc,47.77,Training Expenses,ICT Training
24-Jul-20,Finance & Revenues,"Cerberus, * Cerberus,",243.75,Computer Equipment - Purchase,FTP software support license
22-Jul-20,Finance & Revenues,Paypal,15.99,Advertising/Publicity,Domain renewal
10-Jul-20,Finance & Revenues,Paypal,25.98,Computer Software - Purchase,Domain renewals
10-Jul-20,Finance & Revenues,Paypal,51.96,Computer Software - Purchase,Domain renewals
23-Jul-20,Finance & Revenues,Paypal,687.50,Training Expenses,O365 Training courses 
09-Jul-20,Finance & Revenues,Service Fees - Fraedom Pty Ltd,383.15,Computer Software - Maintenance,Fraedom Card Usage - 010620 to 300620
14-Jul-20,Finance & Revenues,Www.4gon.Co.Uk,170.05,Computer Equipment - Purchase,Secure Gateway for Chantry Park Broadband
30-Jul-20,Finance & Revenues,Www.Aat-Org.Uk,159.00,Employee Expenses,AAT Subscription
30-Jul-20,Finance & Revenues,Www.Aat-Org.Uk,159.00,Employee Expenses,AAT Subscription Fee
09-Jul-20,Finance & Revenues,Www.Softcat.Com,"2,551.16",Computer Equipment - Maintenance,HP switch support for server room switches
13-Jul-20,Housing & Community Services,Amazon Prime,7.99,Equipment / Furniture / Materials,Amazon Prime
15-Jul-20,Housing & Community Services,Amznmktplace,290.76,Telecommunication Costs - Mobiles,Screen protectors & cases for tablets.
20-Jul-20,Housing & Community Services,Ao Retail Limited,129.00,Specific Campaigns / Projects expenditure,TV purchased from Housing first personal budget for client
29-Jun-20,Housing & Community Services,Argos Ltd,124.99,Specific Campaigns / Projects expenditure,Move in items for Housing First client PC
30-Jul-20,Housing & Community Services,Asda Stores 4278,12.00,Specific Campaigns / Projects expenditure,Essentials for Rough sleeper count
21-Jul-20,Housing & Community Services,Chartered Institute Of En,35.00,Training Expenses,Training course 
27-Jul-20,Housing & Community Services,Chartered Institute Of En,35.00,Training Expenses,Training course 
27-Jul-20,Housing & Community Services,Chartered Institute Of En,99.00,Training Expenses,Training course 
29-Jul-20,Housing & Community Services,Chartered Institute Of En,35.00,Training Expenses,Training course 
24-Jun-20,Housing & Community Services,Cpw Locksmiths And Securi,10.00,HRA Special Repairs & Maintenance,provide key for scheme
26-Jun-20,Housing & Community Services,Cpw Locksmiths And Securi,220.00,HRA Special Repairs & Maintenance,provide lock 
30-Jul-20,Housing & Community Services,Currys Online,159.00,Specific Campaigns / Projects expenditure,TV for Housing first client from personal budget
01-May-20,Housing & Community Services,Eoe Co-Op,25.00,Materials and Supplies - Miscellaneous,Electric
10-Jun-20,Housing & Community Services,Eoe Co-Op,20.00,Materials and Supplies - Miscellaneous,Electric
15-Jul-20,Housing & Community Services,Eoe Co-Op,10.00,Materials and Supplies - Miscellaneous,Electric
13-Jul-20,Housing & Community Services,Foremost Garage Doors,126.00,HRA Special Repairs & Maintenance,provide and program 2 Hormann transmitters 
10-Jul-20,Housing & Community Services,J2 Efax Plus Service,11.00,Miscellaneous Expenses,Monthly fee for use of secure fax system (for food parcels)
28-May-20,Housing & Community Services,Martin McColl,15.00,Materials and Supplies - Miscellaneous,Electric
23-Jul-20,Housing & Community Services,Post Office Counter,2.04,Stationery,Postage TV licence renewal
27-Jul-20,Housing & Community Services,Primark,87.50,Services for Clients,clothing for homeless person to be refunded by Ropes Trust
14-Jul-20,Housing & Community Services,Storagemart UK A-449481fe,112.94,Services for Clients,Storage for homeless household
23-Jul-20,Housing & Community Services,Suffolk County Council,11.00,Miscellaneous Expenses,Birth cert chrg for tenant needing bank acc
17-Jul-20,Housing & Community Services,Tesco Store 2748,29.98,Specific Campaigns / Projects expenditure,Phones for rough sleeper clients
17-Jul-20,Housing & Community Services,Tesco Store 2748,29.98,Specific Campaigns / Projects expenditure,Phones purchased for rough sleeper client
17-Jul-20,Housing & Community Services,Tesco Store 2748,29.98,Specific Campaigns / Projects expenditure,Purchase of Iron for Housing First client
30-Jul-20,Housing & Community Services,Tesco Store 2748,7.20,Specific Campaigns / Projects expenditure,Snacks for rough sleeper count volunteers
24-Jul-20,Housing & Community Services,Wickes Ipswich,9.75,Materials and Supplies - Miscellaneous,Skirting
17-Jul-20,Housing & Community Services,Wilko.Com,15.00,Specific Campaigns / Projects expenditure,Iron purchased for housing first client
06-Jul-20,People & Governance,Adobe Ps Creative Cld,"1,416.00",Computer Equipment - Maintenance,Adobe Annual Software Licence for Designers and shared usage
06-Jul-20,People & Governance,Adobe Ps Creative Cld,303.36,Computer Software - Maintenance,Adobe Annual Software Licence for Designers and shared usage
06-Jul-20,People & Governance,Adobe Ps Creative Cld,354.00,Computer Software - Maintenance,Adobe Annual Software Licence for Designers and shared usage
06-Jul-20,People & Governance,Adobe Ps Creative Cld,354.00,Computer Software - Maintenance,Adobe Annual Software Licence for Designers and shared usage
11-May-20,People & Governance,Amazon.Co.Uk,43.69,Computer Consumables and other Minor IT costs,canon PGi-520/CL521
02-Jul-20,People & Governance,Amazon.Co.Uk,466.00,Specific Campaigns / Projects expenditure,Retirement giftcard
28-Jul-20,People & Governance,Amznmktplace,15.98,Stationery,Download wire for MP3 player
06-May-20,People & Governance,Amznmktplace Amazon.Co.Uk,47.46,Computer Consumables and other Minor IT costs,HP903 cmyk 
06-May-20,People & Governance,Amznmktplace Amazon.Co.Uk,119.17,Computer Consumables and other Minor IT costs,4X Canon 545/546 
08-May-20,People & Governance,Amznmktplace Amazon.Co.Uk,35.41,Computer Consumables and other Minor IT costs,Canon CLi-521 cmyk
24-Jul-20,People & Governance,Centaur Magazine Subsc,200.00,Publications - Subscriptions,Design Review Subscription - to be refunded
16-Jul-20,People & Governance,Cipd Integra,163.00,Non Contracted_Professional Services,cipd subscription membership renewal 
16-Jul-20,People & Governance,Cipd Integra,163.00,Non Contracted_Professional Services,cipd subscription membership renewal 
28-Apr-20,People & Governance,Companies House,13.00,Legal Services & Fees,company house fee for council company updates
09-Jun-20,People & Governance,Companies House,13.00,Legal Services & Fees,company house fee for council company updates
04-Jun-20,People & Governance,Dhl,208.33,Equipment / Furniture / Materials,iPost Parcel credits
16-Apr-20,People & Governance,Eb *licensing Mastercl,10.00,Training Expenses,purchase legal textbook
08-Jul-20,People & Governance,Facebk *gjrbquw7j2,58.36,Advertising/Publicity,Facebook advertising
08-Apr-20,People & Governance,Facebk *unm7qsw7j2,10.47,Advertising/Publicity,Facebook advertising
08-Apr-20,People & Governance,Facebk *unm7qsw7j2,1.48,Advertising/Publicity,Facebook advertising
08-Apr-20,People & Governance,Facebk *unm7qsw7j2,0.10,Advertising/Publicity,Facebook advertising
20-Mar-20,People & Governance,Franklins Ipswich,8.21,Mayoral Related Expenditure,Mayoral Ribbon for robes
20-Apr-20,People & Governance,Google,155.21,Advertising/Publicity,Stage Security Google Ads - to be invoiced
18-May-20,People & Governance,Google Ads4541585347,1.64,Advertising/Publicity,Stage Security Google Ads - to be invoiced
13-Apr-20,People & Governance,Mailchimp,499.67,Subscriptions - Service Related,MailChimp subscription
27-Apr-20,People & Governance,Mailchimp,272.46,Subscriptions - Service Related,MailChimp subscription
13-May-20,People & Governance,Mailchimp,468.92,Subscriptions - Service Related,MailChimp subscription
27-May-20,People & Governance,Mailchimp,275.64,Subscriptions - Service Related,MailChimp subscription
15-Jun-20,People & Governance,Mailchimp,459.72,Subscriptions - Service Related,MailChimp subscription
29-Jun-20,People & Governance,Mailchimp,270.46,Subscriptions - Service Related,MailChimp subscription
13-Jul-20,People & Governance,Mailchimp,460.41,Subscriptions - Service Related,MailChimp
27-Jul-20,People & Governance,Mailchimp,263.47,Subscriptions - Service Related,MailChimp
16-Mar-20,People & Governance,Makro Self Service Ipswic,22.82,Direct Transport Costs,Fuel for Mayor's Car
25-Jun-20,People & Governance,Parcel2go.Com Ltd,8.55,Postage Costs,courier for contract
30-Jul-20,People & Governance,Parcel2go_uk,20.20,Postage Costs,courier for urgent contract to other side
12-Jun-20,People & Governance,Payacharity,244.58,Equipment / Furniture / Materials,Donation machine
23-Apr-20,People & Governance,Paypal,208.33,Equipment / Furniture / Materials,iPost parcel credits
07-May-20,People & Governance,Paypal,208.33,Equipment / Furniture / Materials,iPost Parcel credits
21-Apr-20,People & Governance,Paypal,63.50,Publications - Purchase,housing law textbook
22-Jul-20,People & Governance,Quadient UK Ltd,84.38,Miscellaneous Stock  - Purchases,Sealing Fluid for folder inserter in the print room
25-Jun-20,People & Governance,Ryman,31.65,Computer Consumables and other Minor IT costs,PGi 550blk x2 
09-Jul-20,People & Governance,Ryman,44.99,Computer Consumables and other Minor IT costs, HP304XL
09-Jul-20,People & Governance,Ryman,35.98,Computer Consumables and other Minor IT costs,2x Canon550XL
09-Jul-20,People & Governance,Ryman,64.47,Computer Consumables and other Minor IT costs,CANON 525/526 BK/cmyk
09-Jul-20,People & Governance,Ryman,52.49,Computer Consumables and other Minor IT costs,Canon 570/571 cmyk
21-Jul-20,People & Governance,Ryman,35.98,Computer Consumables and other Minor IT costs,Canon550XL Julie Harvey HP304XL cmyk
21-Jul-20,People & Governance,Ryman,75.72,Computer Consumables and other Minor IT costs,Canon550XL & HP304XL cmyk
27-Jul-20,People & Governance,Ryman,28.49,Computer Consumables and other Minor IT costs,Canon PG545/6
26-Mar-20,People & Governance,Shell Ranelagh 390,36.22,Direct Transport Costs,Fuel for Mayor's Car
21-Apr-20,People & Governance,Shopify* 78711001,24.05,Financial Fees & Services,Made in Suffolk online shop
21-May-20,People & Governance,Shopify* 80454010,24.43,Financial Fees & Services,Made in Suffolk online shop
22-Jun-20,People & Governance,Shopify* 82228837,24.21,Financial Fees & Services,Made in Suffolk online shop
20-Jul-20,People & Governance,Shopify* 84257217,23.87,Financial Fees & Services,Made in Suffolk online shop
17-Apr-20,People & Governance,"Sprout Social, Inc",788.35,Subscriptions - Service Related,Social media management system
18-May-20,People & Governance,"Sprout Social, Inc",809.03,Subscriptions - Service Related,Social media management system
17-Jun-20,People & Governance,"Sprout Social, Inc",779.24,Subscriptions - Service Related,Social media management system
17-Jul-20,People & Governance,"Sprout Social, Inc",781.30,Subscriptions - Service Related,Social Media Management Platform
08-Jun-20,People & Governance,Www.Banneruk.Com,"1,080.22",Computer Consumables and other Minor IT costs,HP Laserjet CMYK toners & waste container
02-Jul-20,People & Governance,Www.Banneruk.Com,24.78,Miscellaneous Stock  - Purchases,A4 Laminating Pouches for print room
09-Jul-20,People & Governance,Www.Banneruk.Com,42.00,Miscellaneous Stock  - Purchases,A4 Laminating Pouches for the print room
03-Jul-20,People & Governance,Www.Paper.Co.Uk,340.62,Miscellaneous Stock  - Purchases,Stickers for use within the print room
09-Jul-20,People & Governance,Www.Paper.Co.Uk,898.98,Miscellaneous Stock  - Purchases,Teslin Stickers for Covid Signage
24-Jul-20,People & Governance,Www.Paper.Co.Uk,59.47,Miscellaneous Stock  - Purchases,Paper for the print room
02-Jul-20,People & Governance,Www.Voucherexpress.Co.,227.00,Specific Campaigns / Projects expenditure,Retirement Giftcard
16-Jul-20,People & Governance,Www.Voucherexpress.Co.,418.00,Specific Campaigns / Projects expenditure,Retirement giftcard
16-Jul-20,People & Governance,Www.Voucherexpress.Co.,454.00,Specific Campaigns / Projects expenditure,Retirement giftcard
15-May-20,People & Governance,Zoom.Gbp,23.98,Specific Campaigns / Projects expenditure,Professional Zoom required for Virtual council meeting
22-May-20,People & Governance,Zoom.Gbp,24.77,Specific Campaigns / Projects expenditure,Zoom professional licence for meetings
15-Jun-20,People & Governance,Zoom.Gbp,55.98,Specific Campaigns / Projects expenditure,Zoom professional licence for councillor meetings
15-Jul-20,People & Governance,Zoom.Gbp,23.98,Specific Campaigns / Projects expenditure,Zoom professional licence for IBC meetings
